[Event "*** SCC Grand Prix: Titled Tuesday Blitz"]
[Site "Chess.com"]
[Date "2020.06.09"]
[Round "1"]
[White "ZverevLev"]
[Black "Ginger_GM"]
[Result "0-1"]
[WhiteElo "2243"]
[BlackElo "2585"]
[TimeControl "180+1"]
[EndTime "9:08:15 PDT"]
[Termination "Ginger_GM won on time"]

1. e4 {[%clk 0:02:59.9]} 1... e6 {[%clk 0:02:59.5]} 2. d4 {[%clk 0:02:58]} 2...
d5 {[%clk 0:02:59.6]} 3. Nc3 {[%clk 0:02:55.1]} 3... Nf6 {[%clk 0:02:59.5]} 4.
Bg5 {[%clk 0:02:52.6]} 4... dxe4 {[%clk 0:02:57.5]} 5. Nxe4 {[%clk 0:02:51.1]}
5... Be7 {[%clk 0:02:57.8]} 6. Bxf6 {[%clk 0:02:42.7]} 6... gxf6 {[%clk
0:02:57.7]} 7. Nf3 {[%clk 0:02:38.9]} 7... a6 {[%clk 0:02:56.4]} 8. Bd3 {[%clk
0:02:34]} 8... b5 {[%clk 0:02:53.3]} 9. O-O {[%clk 0:02:31.7]} 9... f5 {[%clk
0:02:50.9]} 10. Ng3 {[%clk 0:02:23.6]} 10... Bb7 {[%clk 0:02:46.5]} 11. Re1
{[%clk 0:02:20.6]} 11... O-O {[%clk 0:02:29.7]} 12. c4 {[%clk 0:02:07.6]} 12...
bxc4 {[%clk 0:02:19.6]} 13. Bxc4 {[%clk 0:02:08.5]} 13... Nd7 {[%clk 0:02:19.3]}
14. Qb3 {[%clk 0:02:05.1]} 14... Bxf3 {[%clk 0:02:06.3]} 15. Qxf3 {[%clk
0:01:57.6]} 15... Nb6 {[%clk 0:02:06.3]} 16. Bb3 {[%clk 0:01:55.6]} 16... Bf6
{[%clk 0:02:02.7]} 17. Rad1 {[%clk 0:01:51.6]} 17... Nd5 {[%clk 0:01:02.1]} 18.
Nxf5 {[%clk 0:01:48]} 18... Kh8 {[%clk 0:00:55.1]} 19. Nh6 {[%clk 0:01:41.1]}
19... c6 {[%clk 0:00:45.3]} 20. Nxf7+ {[%clk 0:01:25.3]} 20... Rxf7 {[%clk
0:00:43]} 21. Rxe6 {[%clk 0:01:25.9]} 21... Qf8 {[%clk 0:00:31.2]} 22. Qg3
{[%clk 0:00:47.9]} 22... Qg7 {[%clk 0:00:25.4]} 23. Qxg7+ {[%clk 0:00:39.6]}
23... Bxg7 {[%clk 0:00:26.3]} 24. Rxc6 {[%clk 0:00:39.1]} 24... Rd8 {[%clk
0:00:24.8]} 25. Rc5 {[%clk 0:00:34]} 25... Rfd7 {[%clk 0:00:24.1]} 26. Re1
{[%clk 0:00:29.4]} 26... Nf4 {[%clk 0:00:23.7]} 27. Rf5 {[%clk 0:00:25.5]} 27...
Nd3 {[%clk 0:00:23.6]} 28. Rd1 {[%clk 0:00:23.5]} 28... Nxb2 {[%clk 0:00:23.5]}
29. Rd2 {[%clk 0:00:21]} 29... Bxd4 {[%clk 0:00:24.1]} 30. Kf1 {[%clk
0:00:20.1]} 30... Bc3 {[%clk 0:00:24.3]} 31. Rxd7 {[%clk 0:00:17.6]} 31... Rxd7
{[%clk 0:00:25.2]} 32. Ke2 {[%clk 0:00:17]} 32... Nd3 {[%clk 0:00:24.8]} 33. Rf3
{[%clk 0:00:15.7]} 33... Nc1+ {[%clk 0:00:24.8]} 34. Kf1 {[%clk 0:00:15.5]}
34... Bb2 {[%clk 0:00:24.9]} 35. Bc2 {[%clk 0:00:13.8]} 35... Rc7 {[%clk
0:00:24.9]} 36. Ba4 {[%clk 0:00:11.9]} 36... Nxa2 {[%clk 0:00:24]} 37. g3 {[%clk
0:00:10.5]} 37... Nc3 {[%clk 0:00:22]} 38. Bb3 {[%clk 0:00:09.7]} 38... a5
{[%clk 0:00:22.2]} 39. Rf8+ {[%clk 0:00:08.6]} 39... Kg7 {[%clk 0:00:22.3]} 40.
Rg8+ {[%clk 0:00:09.5]} 40... Kf6 {[%clk 0:00:22.7]} 41. Ra8 {[%clk 0:00:09.7]}
41... Rc5 {[%clk 0:00:20.9]} 42. f4 {[%clk 0:00:09.1]} 42... Kf5 {[%clk
0:00:20]} 43. Rh8 {[%clk 0:00:08.1]} 43... Ke4 {[%clk 0:00:18.8]} 44. Rxh7
{[%clk 0:00:07.9]} 44... a4 {[%clk 0:00:19.2]} 45. Bc2+ {[%clk 0:00:06.9]} 45...
Kd4 {[%clk 0:00:19.2]} 46. Rd7+ {[%clk 0:00:06.7]} 46... Kc4 {[%clk 0:00:19.2]}
47. Bd3+ {[%clk 0:00:06.9]} 47... Kb3 {[%clk 0:00:18.9]} 48. Rb7+ {[%clk
0:00:07.8]} 48... Ka2 {[%clk 0:00:17.9]} 49. h4 {[%clk 0:00:07.1]} 49... a3
{[%clk 0:00:17.9]} 50. g4 {[%clk 0:00:06.6]} 50... Nd5 {[%clk 0:00:17.8]} 51. f5
{[%clk 0:00:04.5]} 51... Ne3+ {[%clk 0:00:18]} 52. Ke2 {[%clk 0:00:04.5]} 52...
Nxg4 {[%clk 0:00:18.9]} 53. h5 {[%clk 0:00:04.2]} 53... Re5+ {[%clk 0:00:18.1]}
54. Kf3 {[%clk 0:00:03.5]} 54... Nh6 {[%clk 0:00:17.5]} 55. Bc4+ {[%clk
0:00:02.9]} 55... Ka1 {[%clk 0:00:17.1]} 56. Rg7 {[%clk 0:00:01.7]} 56... Bc3
{[%clk 0:00:16.4]} 0-1

[Event "*** SCC Grand Prix: Titled Tuesday Blitz"]
[Site "Chess.com"]
[Date "2020.06.09"]
[Round "1"]
[White "AndrewMaco"]
[Black "CalinGheorghiu"]
[Result "1-0"]
[WhiteElo "2665"]
[BlackElo "2342"]
[TimeControl "180+1"]
[EndTime "9:08:17 PDT"]
[Termination "AndrewMaco won by resignation"]

1. e4 {[%clk 0:03:00.7]} 1... e6 {[%clk 0:02:49.2]} 2. d4 {[%clk 0:02:51.7]}
2... d5 {[%clk 0:02:49.5]} 3. Nc3 {[%clk 0:02:48.1]} 3... Nf6 {[%clk 0:02:48.8]}
4. e5 {[%clk 0:02:45.3]} 4... Nfd7 {[%clk 0:02:47.9]} 5. f4 {[%clk 0:02:44.7]}
5... c5 {[%clk 0:02:48]} 6. Nf3 {[%clk 0:02:45.3]} 6... Be7 {[%clk 0:02:46.1]}
7. Be3 {[%clk 0:02:45.3]} 7... O-O {[%clk 0:02:43.9]} 8. Qd2 {[%clk 0:02:44.7]}
8... Nc6 {[%clk 0:02:33.1]} 9. dxc5 {[%clk 0:02:42.9]} 9... Qa5 {[%clk
0:02:32.6]} 10. O-O-O {[%clk 0:02:31.3]} 10... b6 {[%clk 0:02:30.5]} 11. Bb5
{[%clk 0:02:22.6]} 11... Nb4 {[%clk 0:02:29.9]} 12. Kb1 {[%clk 0:01:46.1]} 12...
bxc5 {[%clk 0:02:07.4]} 13. a3 {[%clk 0:01:44.2]} 13... Rb8 {[%clk 0:01:38.6]}
14. Bxd7 {[%clk 0:01:26.8]} 14... Bxd7 {[%clk 0:01:35.8]} 15. axb4 {[%clk
0:01:06.5]} 15... Qxb4 {[%clk 0:01:34.6]} 16. b3 {[%clk 0:01:02]} 16... c4
{[%clk 0:01:11.5]} 17. Nxd5 {[%clk 0:01:02]} 17... exd5 {[%clk 0:01:04.8]} 18.
Qxb4 {[%clk 0:01:02.2]} 18... Bxb4 {[%clk 0:01:05.3]} 19. Bxa7 {[%clk
0:00:53.4]} 19... Rb7 {[%clk 0:00:58.6]} 20. Bd4 {[%clk 0:00:52.8]} 20... Bf5
{[%clk 0:00:54.7]} 21. Kb2 {[%clk 0:00:49.6]} 21... Rfb8 {[%clk 0:00:51.2]} 22.
c3 {[%clk 0:00:38.9]} 22... Bxc3+ {[%clk 0:00:42.5]} 23. Kxc3 {[%clk 0:00:38.9]}
23... Rxb3+ {[%clk 0:00:42.1]} 24. Kd2 {[%clk 0:00:39.4]} 24... Rd3+ {[%clk
0:00:40.1]} 25. Ke2 {[%clk 0:00:39.2]} 25... Ra3 {[%clk 0:00:32.5]} 26. Ra1
{[%clk 0:00:38.2]} 26... Bd3+ {[%clk 0:00:29.9]} 27. Kd2 {[%clk 0:00:34.3]}
27... Rab3 {[%clk 0:00:29.3]} 28. Ra7 {[%clk 0:00:32]} 28... Be4 {[%clk
0:00:26.8]} 29. Ke2 {[%clk 0:00:22.1]} 29... c3 {[%clk 0:00:24.5]} 30. Rc1
{[%clk 0:00:17.7]} 30... c2 {[%clk 0:00:23.6]} 31. Rc7 {[%clk 0:00:17.4]} 31...
Rb1 {[%clk 0:00:17.8]} 32. R1xc2 {[%clk 0:00:17.2]} 32... Bxc2 {[%clk
0:00:17.6]} 33. Rxc2 {[%clk 0:00:18.1]} 33... R1b7 {[%clk 0:00:17.4]} 34. Rc5
{[%clk 0:00:17.9]} 34... Rd7 {[%clk 0:00:17]} 35. f5 {[%clk 0:00:18.3]} 35... g6
{[%clk 0:00:16.4]} 36. g4 {[%clk 0:00:18.3]} 36... Rb3 {[%clk 0:00:15.6]} 37.
Kf2 {[%clk 0:00:18]} 37... Kf8 {[%clk 0:00:15.5]} 38. Kg3 {[%clk 0:00:18.2]}
38... Ke7 {[%clk 0:00:15.5]} 39. Kf4 {[%clk 0:00:18.6]} 39... h6 {[%clk
0:00:15.4]} 40. h4 {[%clk 0:00:18.5]} 40... Rdb7 {[%clk 0:00:13.5]} 41. Rxd5
{[%clk 0:00:17.4]} 41... R7b4 {[%clk 0:00:13.9]} 42. Ke4 {[%clk 0:00:16]} 42...
gxf5+ {[%clk 0:00:11.4]} 43. gxf5 {[%clk 0:00:16.9]} 43... Ra4 {[%clk 0:00:11]}
44. Rc5 {[%clk 0:00:14.2]} 44... Rxf3 {[%clk 0:00:10.5]} 45. Kxf3 {[%clk
0:00:10.1]} 45... Rxd4 {[%clk 0:00:09.9]} 46. Rc7+ {[%clk 0:00:09.3]} 46... Kf8
{[%clk 0:00:09.6]} 47. h5 {[%clk 0:00:09.3]} 47... Rh4 {[%clk 0:00:08.7]} 48. f6
{[%clk 0:00:08.6]} 48... Kg8 {[%clk 0:00:08.8]} 49. Rc8+ {[%clk 0:00:08]} 49...
Kh7 {[%clk 0:00:09.3]} 50. Rf8 {[%clk 0:00:08.6]} 50... Rxh5 {[%clk 0:00:09.4]}
51. Rxf7+ {[%clk 0:00:09]} 51... Kg8 {[%clk 0:00:09.8]} 52. Rg7+ {[%clk
0:00:09.1]} 52... Kf8 {[%clk 0:00:09.6]} 53. Kf4 {[%clk 0:00:09.6]} 53... Rh1
{[%clk 0:00:08.5]} 54. Rh7 {[%clk 0:00:08.6]} 54... h5 {[%clk 0:00:07.4]} 55.
Kf5 {[%clk 0:00:08.9]} 55... h4 {[%clk 0:00:07.6]} 56. Ke6 {[%clk 0:00:09]}
56... Kg8 {[%clk 0:00:06.3]} 57. Rh5 {[%clk 0:00:09.3]} 57... h3 {[%clk
0:00:05.4]} 58. f7+ {[%clk 0:00:09.5]} 58... Kg7 {[%clk 0:00:05.8]} 59. Rg5+
{[%clk 0:00:08.9]} 59... Kh7 {[%clk 0:00:05.4]} 60. f8=Q {[%clk 0:00:08.6]} 1-0

[Event "*** SCC Grand Prix: Titled Tuesday Blitz"]
[Site "Chess.com"]
[Date "2020.06.09"]
[Round "1"]
[White "tigra"]
[Black "Angel_Hranitel_37"]
[Result "1-0"]
[WhiteElo "2716"]
[BlackElo "2374"]
[TimeControl "180+1"]
[EndTime "9:08:29 PDT"]
[Termination "tigra won by resignation"]

1. Nf3 {[%clk 0:02:58.1]} 1... Nf6 {[%clk 0:02:58.8]} 2. c4 {[%clk 0:02:57.6]}
2... g6 {[%clk 0:02:58.2]} 3. Nc3 {[%clk 0:02:57.4]} 3... Bg7 {[%clk 0:02:58.4]}
4. e4 {[%clk 0:02:57.3]} 4... d6 {[%clk 0:02:58.4]} 5. d4 {[%clk 0:02:56]} 5...
O-O {[%clk 0:02:58.9]} 6. Be2 {[%clk 0:02:56.6]} 6... e5 {[%clk 0:02:56.7]} 7.
d5 {[%clk 0:02:57.1]} 7... c5 {[%clk 0:02:46.7]} 8. O-O {[%clk 0:02:54.9]} 8...
Na6 {[%clk 0:02:43.8]} 9. Ne1 {[%clk 0:02:54.6]} 9... Nc7 {[%clk 0:02:44.4]} 10.
Nd3 {[%clk 0:02:54.5]} 10... a6 {[%clk 0:02:43.6]} 11. b4 {[%clk 0:02:44.4]}
11... cxb4 {[%clk 0:02:38.9]} 12. Nxb4 {[%clk 0:02:44.3]} 12... Bd7 {[%clk
0:02:30.8]} 13. Be3 {[%clk 0:02:41.2]} 13... b5 {[%clk 0:02:29.4]} 14. Bb6
{[%clk 0:02:26.8]} 14... bxc4 {[%clk 0:01:52.2]} 15. a4 {[%clk 0:02:07.9]} 15...
a5 {[%clk 0:01:45.5]} 16. Nc2 {[%clk 0:01:56.3]} 16... Qc8 {[%clk 0:01:28]} 17.
Bxc4 {[%clk 0:01:47.5]} 17... Na6 {[%clk 0:01:24.9]} 18. Na3 {[%clk 0:01:26.9]}
18... Nc5 {[%clk 0:00:29.5]} 19. Qc2 {[%clk 0:01:10.7]} 19... Rb8 {[%clk
0:00:21.5]} 20. Rab1 {[%clk 0:01:08.9]} 20... Rb7 {[%clk 0:00:10]} 21. Bxa5
{[%clk 0:00:58.9]} 21... Rxb1 {[%clk 0:00:08.6]} 22. Qxb1 {[%clk 0:00:52]} 22...
Nxa4 {[%clk 0:00:07.9]} 23. Nxa4 {[%clk 0:00:48.5]} 23... Bxa4 {[%clk
0:00:08.8]} 24. Qb4 {[%clk 0:00:41.5]} 24... Qc5 {[%clk 0:00:07.8]} 25. Qxa4
{[%clk 0:00:41.1]} 25... Ra8 {[%clk 0:00:07.8]} 26. Bb5 {[%clk 0:00:41.1]} 26...
Nxe4 {[%clk 0:00:05.8]} 27. Bb6 {[%clk 0:00:19.8]} 27... Rxa4 {[%clk 0:00:05.3]}
28. Bxc5 {[%clk 0:00:19.3]} 28... Nxc5 {[%clk 0:00:05.2]} 29. Bxa4 {[%clk
0:00:17.5]} 29... Nxa4 {[%clk 0:00:05.2]} 30. Nc4 {[%clk 0:00:17]} 30... Bf8
{[%clk 0:00:04.1]} 31. Rb1 {[%clk 0:00:16.8]} 31... Nc3 {[%clk 0:00:04.5]} 32.
Rb8 {[%clk 0:00:16.7]} 32... Nxd5 {[%clk 0:00:05.1]} 33. Nxd6 {[%clk 0:00:14.7]}
33... f5 {[%clk 0:00:05.9]} 34. Nc4 {[%clk 0:00:14.4]} 34... e4 {[%clk 0:00:06]}
35. Rd8 {[%clk 0:00:10.9]} 35... Nf6 {[%clk 0:00:05.6]} 36. Ne5 {[%clk
0:00:05.4]} 36... Kg7 {[%clk 0:00:06.3]} 37. g3 {[%clk 0:00:04]} 37... Be7
{[%clk 0:00:06.3]} 38. Rb8 {[%clk 0:00:03.3]} 38... Bd6 {[%clk 0:00:06.5]} 39.
Rb7+ {[%clk 0:00:03.7]} 39... Kg8 {[%clk 0:00:06.4]} 40. Nc6 {[%clk 0:00:03.8]}
40... Ng4 {[%clk 0:00:05.2]} 41. h3 {[%clk 0:00:01.7]} 41... Ne5 {[%clk
0:00:04.8]} 42. Nd4 {[%clk 0:00:02.1]} 42... Bc5 {[%clk 0:00:04.1]} 43. Ne6
{[%clk 0:00:02.5]} 43... Nf3+ {[%clk 0:00:03.1]} 44. Kg2 {[%clk 0:00:03]} 44...
Bd6 {[%clk 0:00:02.9]} 45. Rg7+ {[%clk 0:00:03.1]} 45... Kh8 {[%clk 0:00:02.8]}
46. Rd7 {[%clk 0:00:04]} 46... Bf8 {[%clk 0:00:03]} 47. Rd8 {[%clk 0:00:04]}
47... h5 {[%clk 0:00:02.8]} 48. Rxf8+ {[%clk 0:00:04.9]} 48... Kh7 {[%clk
0:00:03.5]} 49. Rf7+ {[%clk 0:00:05.3]} 49... Kh6 {[%clk 0:00:03.9]} 50. Rf8
{[%clk 0:00:06.1]} 50... g5 {[%clk 0:00:04.4]} 51. Rf6+ {[%clk 0:00:05.7]} 51...
Kh7 {[%clk 0:00:04.6]} 52. Rxf5 {[%clk 0:00:06.6]} 52... g4 {[%clk 0:00:04.7]}
53. hxg4 {[%clk 0:00:06.7]} 53... hxg4 {[%clk 0:00:05.6]} 54. Rf4 {[%clk
0:00:07.2]} 54... e3 {[%clk 0:00:06.3]} 55. fxe3 {[%clk 0:00:07.2]} 55... Kh6
{[%clk 0:00:04.7]} 56. Rxg4 {[%clk 0:00:07.2]} 56... Ng5 {[%clk 0:00:05.1]} 57.
Rxg5 {[%clk 0:00:07.4]} 57... Kh7 {[%clk 0:00:05.6]} 58. Nf4 {[%clk 0:00:07.5]}
58... Kh6 {[%clk 0:00:06.5]} 59. Rg6+ {[%clk 0:00:08.4]} 59... Kh7 {[%clk
0:00:06.5]} 60. e4 {[%clk 0:00:09.3]} 60... Kh8 {[%clk 0:00:07.4]} 61. e5 {[%clk
0:00:10.2]} 61... Kh7 {[%clk 0:00:08.3]} 62. e6 {[%clk 0:00:10.9]} 62... Kh8
{[%clk 0:00:09.2]} 63. e7 {[%clk 0:00:11.3]} 63... Kh7 {[%clk 0:00:10.1]} 1-0

[Event "*** SCC Grand Prix: Titled Tuesday Blitz"]
[Site "Chess.com"]
[Date "2020.06.09"]
[Round "1"]
[White "SaqoChess_Twitch"]
[Black "GMKrikor"]
[Result "1-0"]
[WhiteElo "2416"]
[BlackElo "2733"]
[TimeControl "180+1"]
[EndTime "9:08:37 PDT"]
[Termination "SaqoChess_Twitch won by resignation"]

1. d4 {[%clk 0:02:57.3]} 1... Nf6 {[%clk 0:02:49.2]} 2. c4 {[%clk 0:02:55.9]}
2... g6 {[%clk 0:02:46.9]} 3. Nc3 {[%clk 0:02:54.7]} 3... d5 {[%clk 0:02:46.5]}
4. Bf4 {[%clk 0:02:52.5]} 4... Bg7 {[%clk 0:02:42.3]} 5. e3 {[%clk 0:02:52]}
5... O-O {[%clk 0:02:23.5]} 6. Rc1 {[%clk 0:02:48.8]} 6... c6 {[%clk 0:02:14.3]}
7. h3 {[%clk 0:02:39.9]} 7... Be6 {[%clk 0:02:12.4]} 8. Nf3 {[%clk 0:02:36.8]}
8... dxc4 {[%clk 0:02:09]} 9. a4 {[%clk 0:02:32]} 9... Qa5 {[%clk 0:01:56.7]}
10. Ng5 {[%clk 0:02:28.1]} 10... Bd5 {[%clk 0:01:42.9]} 11. Qd2 {[%clk
0:02:17.3]} 11... h6 {[%clk 0:01:34]} 12. Nf3 {[%clk 0:02:16.3]} 12... g5 {[%clk
0:01:22.6]} 13. Bh2 {[%clk 0:02:14.7]} 13... Na6 {[%clk 0:01:06.7]} 14. Ne5
{[%clk 0:02:13.4]} 14... Rad8 {[%clk 0:00:58.4]} 15. Nxc4 {[%clk 0:02:05.2]}
15... Qb4 {[%clk 0:00:45.9]} 16. Nxd5 {[%clk 0:02:00.4]} 16... Nxd5 {[%clk
0:00:44.2]} 17. Qxb4 {[%clk 0:01:58.7]} 17... Naxb4 {[%clk 0:00:39.7]} 18. Be2
{[%clk 0:01:48.3]} 18... f5 {[%clk 0:00:31.3]} 19. Be5 {[%clk 0:01:45.2]} 19...
Bxe5 {[%clk 0:00:29.1]} 20. Nxe5 {[%clk 0:01:46.1]} 20... Kg7 {[%clk 0:00:28.6]}
21. O-O {[%clk 0:01:39.9]} 21... f4 {[%clk 0:00:29]} 22. e4 {[%clk 0:01:38.3]}
22... Nf6 {[%clk 0:00:29.2]} 23. Rfd1 {[%clk 0:01:36.7]} 23... Nxe4 {[%clk
0:00:27.4]} 24. Bf3 {[%clk 0:01:34.8]} 24... Nf6 {[%clk 0:00:27.1]} 25. Rc4
{[%clk 0:01:32.9]} 25... Nbd5 {[%clk 0:00:26.7]} 26. b4 {[%clk 0:01:33.1]} 26...
Rd6 {[%clk 0:00:24.7]} 27. b5 {[%clk 0:01:32]} 27... cxb5 {[%clk 0:00:24.1]} 28.
axb5 {[%clk 0:01:32.5]} 28... Rfd8 {[%clk 0:00:24.6]} 29. Ra1 {[%clk 0:01:28]}
29... a6 {[%clk 0:00:24]} 30. bxa6 {[%clk 0:01:25.6]} 30... Rxa6 {[%clk
0:00:24.9]} 31. Rb1 {[%clk 0:01:24.8]} 31... b6 {[%clk 0:00:23.2]} 32. Rc6
{[%clk 0:01:22.3]} 32... Ra4 {[%clk 0:00:19.7]} 33. Nc4 {[%clk 0:01:16.5]} 33...
Rd7 {[%clk 0:00:15.1]} 34. Nxb6 {[%clk 0:01:02.3]} 34... Nxb6 {[%clk 0:00:14.8]}
35. Rbxb6 {[%clk 0:01:01.2]} 35... Raxd4 {[%clk 0:00:15.7]} 36. Kh2 {[%clk
0:01:01]} 36... R4d6 {[%clk 0:00:15.6]} 37. Rxd6 {[%clk 0:01:00.3]} 37... Rxd6
{[%clk 0:00:14.4]} 38. Rb5 {[%clk 0:01:00.2]} 38... e6 {[%clk 0:00:09]} 39. Kg1
{[%clk 0:01:00.5]} 39... Nd5 {[%clk 0:00:08.7]} 40. Kf1 {[%clk 0:01:00.6]} 40...
Kf6 {[%clk 0:00:09]} 41. Rb7 {[%clk 0:01:00.4]} 41... Ne7 {[%clk 0:00:09.3]} 42.
Rb8 {[%clk 0:01:00.1]} 42... Ng6 {[%clk 0:00:07.8]} 43. Rg8 {[%clk 0:00:59.3]}
43... Ne7 {[%clk 0:00:07.5]} 44. Rh8 {[%clk 0:00:58.5]} 44... Kg7 {[%clk
0:00:07.9]} 45. Re8 {[%clk 0:00:58.4]} 45... Rd7 {[%clk 0:00:07.8]} 46. Be4
{[%clk 0:00:57.1]} 46... Kf7 {[%clk 0:00:05.4]} 47. Rh8 {[%clk 0:00:56.4]} 47...
Ng8 {[%clk 0:00:06]} 48. Rh7+ {[%clk 0:00:54.9]} 48... Ke8 {[%clk 0:00:06.4]}
49. Rh8 {[%clk 0:00:54.3]} 49... Rg7 {[%clk 0:00:05.6]} 50. Ke2 {[%clk
0:00:52.4]} 50... Kf7 {[%clk 0:00:04.9]} 51. Bf3 {[%clk 0:00:50.9]} 51... Kf8
{[%clk 0:00:02.2]} 52. Bg4 {[%clk 0:00:49.9]} 52... Re7 {[%clk 0:00:02.4]} 53.
Kd3 {[%clk 0:00:49.7]} 53... Rd7+ {[%clk 0:00:02.4]} 54. Ke4 {[%clk 0:00:50.1]}
54... Kg7 {[%clk 0:00:02.3]} 55. Rxg8+ {[%clk 0:00:49]} 55... Kxg8 {[%clk
0:00:02.6]} 56. Bxe6+ {[%clk 0:00:49.6]} 56... Rf7 {[%clk 0:00:03.3]} 57. Ke5
{[%clk 0:00:44.2]} 57... Kg7 {[%clk 0:00:02.9]} 58. Bxf7 {[%clk 0:00:44.4]}
58... Kxf7 {[%clk 0:00:03.8]} 59. Kf5 {[%clk 0:00:45]} 59... Kg7 {[%clk
0:00:04.2]} 60. Ke6 {[%clk 0:00:44.4]} 60... Kg6 {[%clk 0:00:04.1]} 61. f3
{[%clk 0:00:44.7]} 61... Kg7 {[%clk 0:00:04]} 62. Ke7 {[%clk 0:00:43.1]} 62...
Kg6 {[%clk 0:00:03.9]} 63. Kf8 {[%clk 0:00:43]} 63... h5 {[%clk 0:00:03.4]} 64.
Ke7 {[%clk 0:00:42.7]} 64... g4 {[%clk 0:00:04.3]} 65. h4 {[%clk 0:00:39.2]}
65... Kf5 {[%clk 0:00:02.6]} 66. Kd6 {[%clk 0:00:37.5]} 66... Kf6 {[%clk
0:00:02.3]} 67. Kd5 {[%clk 0:00:37.9]} 67... Kf5 {[%clk 0:00:02.9]} 68. Kd4
{[%clk 0:00:38.3]} 68... gxf3 {[%clk 0:00:01.8]} 69. gxf3 {[%clk 0:00:38.1]}
69... Kf6 {[%clk 0:00:02.1]} 70. Ke4 {[%clk 0:00:38.7]} 70... Ke6 {[%clk
0:00:02.7]} 71. Kxf4 {[%clk 0:00:39.4]} 71... Kf6 {[%clk 0:00:03.6]} 72. Ke4
{[%clk 0:00:39.8]} 72... Ke6 {[%clk 0:00:04]} 73. f4 {[%clk 0:00:39.6]} 73...
Kf6 {[%clk 0:00:04.2]} 74. f5 {[%clk 0:00:40.3]} 74... Kf7 {[%clk 0:00:04.9]}
75. Kf4 {[%clk 0:00:41.2]} 75... Kf6 {[%clk 0:00:05.2]} 76. Ke4 {[%clk
0:00:41.1]} 76... Kf7 {[%clk 0:00:05.6]} 77. Ke5 {[%clk 0:00:42]} 77... Ke7
{[%clk 0:00:05.6]} 78. f6+ {[%clk 0:00:40.2]} 78... Kf7 {[%clk 0:00:06.5]} 79.
Kf5 {[%clk 0:00:40.4]} 1-0

[Event "*** SCC Grand Prix: Titled Tuesday Blitz"]
[Site "Chess.com"]
[Date "2020.06.09"]
[Round "1"]
[White "harlem4brew"]
[Black "2L8IWUN"]
[Result "1-0"]
[WhiteElo "2203"]
[BlackElo "2538"]
[TimeControl "180+1"]
[EndTime "9:08:37 PDT"]
[Termination "harlem4brew won by resignation"]

1. e4 {[%clk 0:02:58.7]} 1... c5 {[%clk 0:02:59.1]} 2. Nf3 {[%clk 0:02:58.4]}
2... d6 {[%clk 0:02:59.6]} 3. d4 {[%clk 0:02:56.8]} 3... cxd4 {[%clk 0:03:00.5]}
4. Nxd4 {[%clk 0:02:54]} 4... Nf6 {[%clk 0:03:00.9]} 5. Nc3 {[%clk 0:02:53.1]}
5... Nc6 {[%clk 0:03:01.5]} 6. Bg5 {[%clk 0:02:52.8]} 6... e6 {[%clk 0:03:00.9]}
7. Be2 {[%clk 0:02:50.4]} 7... a6 {[%clk 0:02:58.8]} 8. Nxc6 {[%clk 0:02:49.7]}
8... bxc6 {[%clk 0:02:58.8]} 9. e5 {[%clk 0:02:43.4]} 9... dxe5 {[%clk
0:02:53.4]} 10. Qxd8+ {[%clk 0:02:42.5]} 10... Kxd8 {[%clk 0:02:54.3]} 11.
O-O-O+ {[%clk 0:02:35.5]} 11... Kc7 {[%clk 0:02:54.2]} 12. Rhe1 {[%clk 0:02:34]}
12... h6 {[%clk 0:02:53]} 13. Bh4 {[%clk 0:02:32]} 13... Bd6 {[%clk 0:02:46.3]}
14. Bg3 {[%clk 0:02:28.4]} 14... Rd8 {[%clk 0:02:41.5]} 15. Bf3 {[%clk
0:02:27.4]} 15... Nd5 {[%clk 0:02:38.6]} 16. Bxe5 {[%clk 0:02:19]} 16... Bxe5
{[%clk 0:02:30.4]} 17. Rxe5 {[%clk 0:02:18.3]} 17... Bb7 {[%clk 0:02:30.4]} 18.
Na4 {[%clk 0:02:15.1]} 18... Nf6 {[%clk 0:02:15.7]} 19. Rde1 {[%clk 0:02:08]}
19... Rd4 {[%clk 0:02:13.5]} 20. Nc5 {[%clk 0:02:06.4]} 20... Rad8 {[%clk
0:02:11.8]} 21. c3 {[%clk 0:01:58.9]} 21... Rd2 {[%clk 0:02:07.2]} 22. R5e2
{[%clk 0:01:48.3]} 22... Rxe2 {[%clk 0:02:03.6]} 23. Rxe2 {[%clk 0:01:48.2]}
23... Bc8 {[%clk 0:02:02.1]} 24. a4 {[%clk 0:01:40.7]} 24... Kb6 {[%clk
0:01:54.7]} 25. Nb3 {[%clk 0:01:36.4]} 25... a5 {[%clk 0:01:49.2]} 26. h3 {[%clk
0:01:32.6]} 26... Nd5 {[%clk 0:01:46.1]} 27. Rd2 {[%clk 0:01:30.3]} 27... Ba6
{[%clk 0:01:43.9]} 28. Nd4 {[%clk 0:01:22.1]} 28... Rb8 {[%clk 0:01:34.3]} 29.
Kc2 {[%clk 0:01:15]} 29... Kc7 {[%clk 0:01:31.1]} 30. Nb3 {[%clk 0:01:09.3]}
30... Kb6 {[%clk 0:01:28.2]} 31. Rd4 {[%clk 0:01:07.6]} 31... Rd8 {[%clk
0:01:14.9]} 32. Rd2 {[%clk 0:01:00.6]} 32... f5 {[%clk 0:01:13.7]} 33. Nd4
{[%clk 0:00:59]} 33... Rd6 {[%clk 0:01:11.1]} 34. Be2 {[%clk 0:00:53]} 34... c5
{[%clk 0:01:00.7]} 35. Nb5 {[%clk 0:00:50]} 35... Bxb5 {[%clk 0:00:59.6]} 36.
Bxb5 {[%clk 0:00:49.6]} 36... Kc7 {[%clk 0:00:53.3]} 37. Bc4 {[%clk 0:00:47.6]}
37... Nb6 {[%clk 0:00:52.6]} 38. Rxd6 {[%clk 0:00:46.5]} 38... Kxd6 {[%clk
0:00:53.5]} 39. Bb5 {[%clk 0:00:46.4]} 39... Kd5 {[%clk 0:00:48.1]} 40. Kd3
{[%clk 0:00:46.3]} 40... c4+ {[%clk 0:00:47.4]} 41. Ke3 {[%clk 0:00:46.1]} 41...
e5 {[%clk 0:00:46.7]} 42. f4 {[%clk 0:00:44.7]} 42... g5 {[%clk 0:00:45.6]} 43.
g3 {[%clk 0:00:43.1]} 43... exf4+ {[%clk 0:00:39.6]} 44. gxf4 {[%clk 0:00:42.6]}
44... Nc8 {[%clk 0:00:36.5]} 45. Bd7 {[%clk 0:00:40.7]} 45... Nd6 {[%clk
0:00:36.3]} 46. Kf3 {[%clk 0:00:38.7]} 46... Nb7 {[%clk 0:00:35.8]} 47. Bxf5
{[%clk 0:00:35]} 47... Nc5 {[%clk 0:00:35.8]} 48. Bc2 {[%clk 0:00:34.5]} 48...
Ke6 {[%clk 0:00:26.1]} 49. f5+ {[%clk 0:00:32.7]} 49... Ke5 {[%clk 0:00:25.3]}
50. Ke3 {[%clk 0:00:30.7]} 50... h5 {[%clk 0:00:24.8]} 51. f6 {[%clk 0:00:21.7]}
51... Kxf6 {[%clk 0:00:23.8]} 52. Kd4 {[%clk 0:00:21.3]} 52... Ne6+ {[%clk
0:00:20.7]} 53. Kxc4 {[%clk 0:00:21.2]} 53... g4 {[%clk 0:00:21.6]} 54. hxg4
{[%clk 0:00:20.8]} 54... hxg4 {[%clk 0:00:22.5]} 55. Be4 {[%clk 0:00:21.1]}
55... Ke5 {[%clk 0:00:22.3]} 56. Bh1 {[%clk 0:00:21.1]} 56... Kd6 {[%clk
0:00:21.4]} 57. Kb5 {[%clk 0:00:20.5]} 57... Nc5 {[%clk 0:00:21.4]} 58. Kxa5
{[%clk 0:00:20.6]} 58... Nd3 {[%clk 0:00:21.9]} 59. b4 {[%clk 0:00:20.8]} 59...
Kc7 {[%clk 0:00:21.8]} 60. b5 {[%clk 0:00:21]} 60... Nc5 {[%clk 0:00:21.7]} 61.
c4 {[%clk 0:00:20.3]} 61... Kb8 {[%clk 0:00:20.8]} 62. Kb6 {[%clk 0:00:20.2]}
62... Nd7+ {[%clk 0:00:20.6]} 63. Kc6 {[%clk 0:00:20.1]} 63... Ne5+ {[%clk
0:00:21.3]} 64. Kd5 {[%clk 0:00:20.1]} 64... Nd3 {[%clk 0:00:21]} 65. c5 {[%clk
0:00:20.3]} 65... g3 {[%clk 0:00:20.9]} 66. a5 {[%clk 0:00:20.2]} 66... Nb4+
{[%clk 0:00:20.8]} 67. Kd6 {[%clk 0:00:19.6]} 67... Nd3 {[%clk 0:00:19.9]} 68.
c6 {[%clk 0:00:19.6]} 68... Nf2 {[%clk 0:00:17.6]} 69. b6 {[%clk 0:00:19.6]}
69... Nxh1 {[%clk 0:00:17.2]} 70. c7+ {[%clk 0:00:19.7]} 70... Kb7 {[%clk
0:00:17.8]} 71. Kd7 {[%clk 0:00:19.8]} 71... Ka6 {[%clk 0:00:18.2]} 72. c8=Q+
{[%clk 0:00:20]} 1-0